fUSD/lending_fUSD_20260122
["ID","MTS","AMOUNT","RATE_DAILY","PERIOD"]
[403035021,1769093447007,-163.38638294,0.00035616,7]
[403035022,1769093447017,-500.0,0.00035616,7]
[403035023,1769093447027,-500.0,0.00035616,7]
[403035024,1769093447038,-260.22689207,0.00035616,7]
[403035025,1769093447047,-651.4,0.00035616,2]
[403035026,1769093447056,-450.0,0.00035816,5]
[403035027,1769093447067,-136571.89932888,0.00036,2]
[403035028,1769093447077,-2142.59385289,0.00036,2]
[403035029,1769093447086,-3000.0,0.00036,30]
[403035030,1769093447096,-200.0,0.00036207,2]
[403035031,1769093447106,-550.0,0.00036364,5]
[403035032,1769093447116,-2101.2,0.00036379,7]
[403035033,1769093447126,-35397.16,0.000366,2]
[403035034,1769093447135,-6549.25,0.00036705,2]
[403035035,1769093447148,-152.0163,0.00036888,7]
[403035036,1769093447159,-209.0,0.0003689,30]
[403035037,1769093447169,-650.0,0.00036912,5]
[403035038,1769093447178,-253.041851,0.00036986,31]
[403035039,1769093447191,-151.0,0.00036986,7]
[403035040,1769093447201,-151.0,0.00036986,7]
[403035041,1769093447210,-151.0,0.00036986,7]
[403035042,1769093447219,-152.028312,0.00036986,7]
[403035043,1769093447229,-154.017159,0.00036986,31]
[403035044,1769093447239,-151.0,0.00036986,31]
[403035045,1769093447248,-164.245805,0.00036986,31]
[403035046,1769093447259,-153.239103,0.00036986,31]
[403035047,1769093447269,-153.239103,0.00036986,31]
[403035048,1769093447279,-153.239103,0.00036986,31]
[403035049,1769093447288,-153.239103,0.00036986,31]
[403035050,1769093447298,-153.239103,0.00036986,31]
[403035051,1769093447307,-153.239103,0.00036986,31]
[403035052,1769093447316,-153.239103,0.00036986,31]
[403035053,1769093447325,-153.239103,0.00036986,31]
[403035054,1769093447335,-153.239103,0.00036986,31]
[403035055,1769093447347,-153.239103,0.00036986,31]
[403035056,1769093447356,-153.239103,0.00036986,31]
[403035057,1769093447366,-153.239103,0.00036986,31]
[403035058,1769093447375,-153.239103,0.00036986,31]
[403035059,1769093447385,-153.239103,0.00036986,31]
[403035060,1769093447395,-153.239103,0.00036986,31]
[403035061,1769093447404,-153.239103,0.00036986,31]
[403035062,1769093447414,-153.239103,0.00036986,31]
[403035063,1769093447424,-153.239103,0.00036986,31]
[403035064,1769093447433,-153.239103,0.00036986,31]
[403035065,1769093447443,-153.23911,0.00036986,31]
[403035066,1769093447456,-154.497182,0.00036986,31]
[403035067,1769093447465,-156.87477,0.00036986,31]
[403035068,1769093447475,-151.0,0.00036986,31]
[403035069,1769093447486,-151.0,0.00036986,31]
[403035070,1769093447496,-151.0,0.00036986,31]
[403035071,1769093447505,-151.0,0.00036986,31]
[403035072,1769093447514,-164.589981,0.00036986,31]
[403035073,1769093447524,-152.759625,0.00036986,31]
[403035074,1769093447533,-152.339417,0.00036986,31]
[403035075,1769093447543,-151.0,0.00036986,31]
[403035076,1769093447552,-285.055341,0.00036986,31]
[403035077,1769093447563,-154.063597,0.00036986,31]
[403035078,1769093447573,-151.0,0.00036986,31]
[403035079,1769093447582,-152.453473,0.00036986,31]
[403035080,1769093447592,-154.1435,0.00036986,31]
[403035081,1769093447602,-151.0,0.00036986,31]
[403035082,1769093447611,-156.004547,0.00036986,31]
[403035083,1769093447620,-151.0,0.00036986,31]
[403035084,1769093447630,-296.586895,0.00036986,31]
[403035085,1769093447639,-296.586895,0.00036986,31]
[403035086,1769093447649,-296.586895,0.00036986,31]
[403035087,1769093447658,-296.586895,0.00036986,31]
[403035088,1769093447668,-296.58689585,0.00036986,31]
[403035089,1769093447677,-153.433041,0.00036986,31]
[403035090,1769093447687,-156.453824,0.00036986,31]
[403035091,1769093447697,-151.0,0.00036986,31]
[403035092,1769093447706,-243.649618,0.00036986,31]
[403035093,1769093447716,-174.986168,0.00036986,31]
[403035094,1769093447725,-151.0,0.00036986,31]
[403035095,1769093447744,-151.0,0.00036986,31]
[403035096,1769093447755,-151.0,0.00036986,31]
[403035097,1769093447764,-151.0,0.00036986,31]
[403035098,1769093447774,-151.0,0.00036986,31]
[403035099,1769093447785,-151.0,0.00036986,31]
[403035100,1769093447794,-151.0,0.00036986,31]
[403035101,1769093447803,-151.0,0.00036986,31]
[403035102,1769093447942,-151.0,0.00036986,31]
[403035103,1769093447953,-151.0,0.00036986,31]
[403035104,1769093447962,-151.0,0.00036986,31]
[403035105,1769093447971,-151.0,0.00036986,31]
[403035106,1769093447981,-151.0,0.00036986,31]
[403035107,1769093447990,-151.0,0.00036986,31]
[403035108,1769093447999,-151.0,0.00036986,31]
[403035109,1769093448008,-151.0,0.00036986,31]
[403035110,1769093448017,-181.850976,0.00036986,31]
[403035111,1769093448027,-151.0,0.00036986,31]
[403035112,1769093448036,-151.0,0.00036986,31]
[403035113,1769093448046,-151.0,0.00036986,31]
[403035114,1769093448055,-151.0,0.00036986,31]
[403035115,1769093448064,-151.0,0.00036986,31]
[403035116,1769093448074,-151.0,0.00036986,31]
[403035117,1769093448083,-151.0,0.00036986,31]
[403035118,1769093448092,-151.0,0.00036986,31]
[403035119,1769093448102,-266.605847,0.00036986,31]
[403035120,1769093448111,-151.0,0.00036986,31]
[403035121,1769093448120,-157.195285,0.00036986,31]
[403035122,1769093448129,-151.0,0.00036986,31]
[403035123,1769093448138,-155.619575,0.00036986,31]
[403035124,1769093448147,-151.0,0.00036986,31]
[403035125,1769093448156,-151.0,0.00036986,31]
[403035126,1769093448166,-173.870812,0.00036986,31]
[403035127,1769093448175,-171.905968,0.00036986,31]
[403035128,1769093448183,-151.0,0.00036986,31]
[403035129,1769093448193,-151.0,0.00036986,31]
[403035130,1769093448204,-244.95,0.00036986,31]
[403035131,1769093448214,-151.0,0.00036986,31]
[403035132,1769093448223,-244.95,0.00036986,31]
[403035133,1769093448232,-151.0,0.00036986,31]
[403035134,1769093448241,-244.95,0.00036986,31]
[403035135,1769093448250,-151.0,0.00036986,31]
[403035136,1769093448259,-151.0,0.00036986,31]
[403035137,1769093448269,-244.95,0.00036986,31]
[403035138,1769093448279,-151.0,0.00036986,31]
[403035139,1769093448288,-244.95,0.00036986,31]
[403035140,1769093448297,-151.0,0.00036986,31]
[403035141,1769093448307,-151.0,0.00036986,31]
[403035142,1769093448316,-154.55524937,0.00036986,31]
[403035143,1769093448326,-244.95,0.00036986,31]
[403035144,1769093448335,-151.0,0.00036986,31]
[403035145,1769093448344,-151.0,0.00036986,31]
[403035146,1769093448353,-244.95,0.00036986,31]
[403035147,1769093448362,-153.742917,0.00036986,31]
[403035148,1769093448371,-155.894822,0.00036986,31]
[403035149,1769093448381,-244.95,0.00036986,31]
[403035150,1769093448390,-244.95,0.00036986,31]
[403035151,1769093448399,-244.95,0.00036986,31]
[403035152,1769093448408,-244.95,0.00036986,31]
[403035153,1769093448417,-151.0,0.00036986,31]
[403035154,1769093448426,-244.95,0.00036986,31]
[403035155,1769093448435,-151.0,0.00036986,31]
[403035156,1769093448450,-244.95,0.00036986,31]
[403035157,1769093448459,-156.362247,0.00036986,31]
[403035158,1769093448468,-151.0,0.00036986,31]
[403035159,1769093448478,-244.95,0.00036986,31]
[403035160,1769093448489,-151.0,0.00036986,31]
[403035161,1769093448498,-244.95,0.00036986,31]
[403035162,1769093448507,-155.084288,0.00036986,31]
[403035163,1769093448517,-151.0,0.00036986,31]
[403035164,1769093448525,-244.95,0.00036986,31]
[403035165,1769093448534,-151.0,0.00036986,31]
[403035166,1769093448543,-244.95,0.00036986,31]
[403035167,1769093448553,-151.0,0.00036986,31]
[403035168,1769093448562,-244.95,0.00036986,31]
[403035169,1769093448571,-151.0,0.00036986,31]
[403035170,1769093448580,-244.95,0.00036986,31]
[403035171,1769093448589,-151.0,0.00036986,31]
[403035172,1769093448598,-151.0,0.00036986,31]
[403035173,1769093448606,-244.95,0.00036986,31]
[403035174,1769093448615,-151.0,0.00036986,31]
[403035175,1769093448624,-151.0,0.00036986,31]
[403035176,1769093448633,-208.303742,0.00036986,31]
[403035177,1769093448643,-151.0,0.00036986,31]
[403035178,1769093448652,-217.721704,0.00036986,31]
[403035179,1769093448661,-151.0,0.00036986,31]
[403035180,1769093448670,-151.0,0.00036986,31]
[403035181,1769093448679,-151.0,0.00036986,31]
[403035182,1769093448688,-151.0,0.00036986,30]
[403035183,1769093448699,-151.0,0.00036986,31]
[403035184,1769093448708,-151.0,0.00036986,31]
[403035185,1769093448717,-151.0,0.00036986,31]
[403035186,1769093448726,-151.0,0.00036986,31]
[403035187,1769093448735,-151.0,0.00036986,31]
[403035188,1769093448744,-151.0,0.00036986,31]
[403035189,1769093448754,-151.000003,0.00036986,31]
[403035190,1769093448763,-151.0,0.00036986,31]
[403035191,1769093448772,-151.0,0.00036986,31]
[403035192,1769093448782,-151.0,0.00036986,31]
[403035193,1769093448791,-151.0,0.00036986,31]
[403035194,1769093448800,-151.0,0.00036986,31]
[403035195,1769093448809,-151.0,0.00036986,31]
[403035196,1769093448818,-151.0,0.00036986,31]
[403035197,1769093448828,-240.059498,0.00036986,31]
[403035198,1769093448837,-158.557675,0.00036986,31]
[403035199,1769093448846,-153.496901,0.00036986,31]
[403035200,1769093448856,-151.170668,0.00036986,31]
[403035201,1769093448865,-151.0,0.00036986,31]
[403035202,1769093448874,-156.84872,0.00036986,31]
[403035203,1769093448883,-155.944435,0.00036986,31]
[403035204,1769093448892,-209.305978,0.00036986,31]
[403035205,1769093448901,-151.0,0.00036986,31]
[403035206,1769093448911,-151.0,0.00036986,31]
[403035207,1769093448920,-151.0,0.00036986,31]
[403035208,1769093448929,-151.0,0.00036986,31]
[403035209,1769093448939,-151.0,0.00036986,31]
[403035210,1769093448951,-151.0,0.00036986,31]
[403035211,1769093448961,-151.018022,0.00036986,31]
[403035212,1769093448971,-169.250215,0.00036986,31]
[403035213,1769093448980,-151.0,0.00036986,10]
[403035214,1769093448991,-151.0,0.00036986,10]
[403035215,1769093449001,-151.0,0.00036986,10]
[403035216,1769093449010,-151.0,0.00036986,10]
[403035217,1769093449020,-151.0,0.00036986,10]
[403035218,1769093449029,-151.0,0.00036986,10]
[403035219,1769093449038,-151.0,0.00036986,10]
[403035220,1769093449047,-151.0,0.00036986,10]
[403035221,1769093449057,-210.747098,0.00036986,10]
[403035222,1769093449066,-276.012005,0.00036986,31]
[403035223,1769093449075,-151.0,0.00036986,31]
[403035224,1769093449084,-151.0,0.00036986,31]
[403035225,1769093449094,-151.930096,0.00036986,31]
[403035226,1769093449103,-151.0,0.00036986,31]
[403035227,1769093449112,-151.0,0.00036986,31]
[403035228,1769093449122,-151.0,0.00036986,31]
[403035229,1769093449131,-151.0,0.00036986,31]
[403035230,1769093449141,-151.0,0.00036986,31]
[403035231,1769093449150,-151.0,0.00036986,31]
[403035232,1769093449159,-155.184427,0.00036986,31]
[403035233,1769093449168,-156.94376,0.00036986,31]
[403035234,1769093449178,-151.0,0.00036986,31]
[403035235,1769093449187,-151.0,0.00036986,31]
[403035236,1769093449198,-151.0,0.00036986,31]
[403035237,1769093449207,-151.0,0.00036986,31]
[403035238,1769093449217,-151.0,0.00036986,31]
[403035239,1769093449226,-151.0,0.00036986,31]
[403035240,1769093449235,-151.0,0.00036986,31]
[403035241,1769093449244,-151.0,0.00036986,31]
[403035242,1769093449253,-151.0,0.00036986,31]
[403035243,1769093449263,-151.0,0.00036986,31]
[403035244,1769093449272,-151.0,0.00036986,31]
[403035245,1769093449281,-151.0,0.00036986,31]
[403035246,1769093449290,-151.0,0.00036986,31]
[403035247,1769093449300,-151.0,0.00036986,31]
[403035248,1769093449309,-151.0,0.00036986,31]
[403035249,1769093449318,-151.0,0.00036986,31]
[403035250,1769093449327,-151.0,0.00036986,31]
[403035251,1769093449337,-191.487206,0.00036986,31]
[403035252,1769093449346,-151.0,0.00036986,31]
[403035253,1769093449355,-166.78313,0.00036986,31]
[403035254,1769093449364,-158.369979,0.00036986,31]
[403035255,1769093449373,-158.369979,0.00036986,31]
[403035256,1769093449383,-158.369979,0.00036986,31]
[403035257,1769093449392,-158.369979,0.00036986,31]
[403035258,1769093449402,-158.369979,0.00036986,31]
[403035259,1769093449411,-151.0,0.00036986,31]
[403035260,1769093449421,-158.369979,0.00036986,31]
[403035261,1769093449430,-151.0,0.00036986,31]
[403035262,1769093449440,-158.369979,0.00036986,31]
[403035263,1769093449455,-151.0,0.00036986,31]
[403035264,1769093449464,-158.369979,0.00036986,31]
[403035265,1769093449473,-151.0,0.00036986,31]
[403035266,1769093449483,-158.369979,0.00036986,31]
[403035267,1769093449492,-151.0,0.00036986,31]
[403035268,1769093449502,-158.369979,0.00036986,31]
[403035269,1769093449510,-151.0,0.00036986,31]
[403035270,1769093449522,-158.369979,0.00036986,31]
[403035271,1769093449531,-151.0,0.00036986,31]
[403035272,1769093449540,-158.369979,0.00036986,31]
[403035273,1769093449550,-151.0,0.00036986,31]
[403035274,1769093449559,-158.369979,0.00036986,31]
[403035275,1769093449568,-151.0,0.00036986,31]
[403035276,1769093449578,-158.369979,0.00036986,31]
[403035277,1769093449587,-151.0,0.00036986,31]
[403035278,1769093449596,-158.369979,0.00036986,31]
[403035279,1769093449606,-151.0,0.00036986,31]
[403035280,1769093449615,-158.369979,0.00036986,31]
[403035281,1769093449624,-151.0,0.00036986,31]
[403035282,1769093449634,-158.369979,0.00036986,31]
[403035283,1769093449643,-266.463239,0.00036986,31]
[403035284,1769093449652,-158.369979,0.00036986,31]
[403035285,1769093449662,-158.369979,0.00036986,31]
[403035286,1769093449671,-158.369981,0.00036986,31]
[403035287,1769093449681,-151.0,0.00036986,31]
[403035288,1769093449690,-298.751774,0.00036986,31]
[403035289,1769093449699,-151.0,0.00036986,31]
[403035290,1769093449709,-151.0,0.00036986,31]
[403035291,1769093449718,-151.0,0.00036986,31]
[403035292,1769093449727,-151.0,0.00036986,31]
[403035293,1769093449736,-262.951767,0.00036986,31]
[403035294,1769093449746,-151.0,0.00036986,31]
[403035295,1769093449755,-151.0,0.00036986,31]
[403035296,1769093449764,-155.110487,0.00036986,31]
[403035297,1769093449774,-151.0,0.00036986,31]
[403035298,1769093449783,-151.0,0.00036986,31]
[403035299,1769093449792,-151.0,0.00036986,31]
[403035300,1769093449801,-151.0,0.00036986,31]
[403035301,1769093449810,-151.0,0.00036986,31]
[403035302,1769093449819,-151.0,0.00036986,31]
[403035303,1769093449828,-184.6877,0.00036986,31]
[403035304,1769093449838,-163.823544,0.00036986,31]
[403035305,1769093449847,-156.662825,0.00036986,31]
[403035306,1769093449856,-155.973945,0.00036986,31]
[403035307,1769093449866,-151.0,0.00036986,31]
[403035308,1769093449875,-153.839492,0.00036986,31]
[403035309,1769093449885,-157.025842,0.00036986,31]
[403035310,1769093449894,-153.211414,0.00036986,31]
[403035311,1769093449903,-151.0,0.00036986,31]
[403035312,1769093449913,-156.017807,0.00036986,31]
[403035313,1769093449922,-152.962482,0.00036986,31]
[403035314,1769093449931,-899.248095,0.00036986,31]
[403035315,1769093449940,-899.248095,0.00036986,31]
[403035316,1769093449949,-1025.973998,0.00036986,31]
[403035317,1769093449959,-899.248095,0.00036986,31]
[403035318,1769093449967,-211.831723,0.00036986,31]
[403035319,1769093449977,-899.248095,0.00036986,31]
[403035320,1769093449986,-1025.973998,0.00036986,31]
[403035321,1769093449995,-899.248095,0.00036986,31]
[403035322,1769093450004,-1025.973998,0.00036986,31]
[403035323,1769093450014,-899.248095,0.00036986,31]
[403035324,1769093450023,-1025.973998,0.00036986,31]
[403035325,1769093450033,-899.248095,0.00036986,31]
[403035326,1769093450042,-1025.973998,0.00036986,31]
[403035327,1769093450051,-899.248095,0.00036986,31]
[403035328,1769093450061,-1025.973998,0.00036986,31]
[403035329,1769093450070,-899.248095,0.00036986,31]
[403035330,1769093450079,-1025.973998,0.00036986,31]
[403035331,1769093450089,-899.248095,0.00036986,31]
[403035332,1769093450098,-1025.973998,0.00036986,31]
[403035333,1769093450107,-899.248095,0.00036986,31]
[403035334,1769093450117,-151.855203,0.00036986,31]
[403035335,1769093450126,-1025.973998,0.00036986,31]
[403035336,1769093450135,-899.248095,0.00036986,31]
[403035337,1769093450145,-1025.973998,0.00036986,31]
[403035338,1769093450154,-1025.973998,0.00036986,31]
[403035339,1769093450164,-156.496588,0.00036986,31]
[403035340,1769093450173,-899.248095,0.00036986,31]
[403035341,1769093450183,-1025.973998,0.00036986,31]
[403035342,1769093450192,-899.248095,0.00036986,31]
[403035343,1769093450202,-1025.973998,0.00036986,31]
[403035344,1769093450211,-899.248095,0.00036986,31]
[403035345,1769093450220,-1025.973998,0.00036986,31]
[403035346,1769093450229,-92.06156733,0.00036986,31]
[403035347,1769093450649,-807.18652767,0.00036986,31]
[403035348,1769093450658,-1025.973998,0.00036986,31]
[403035349,1769093450667,-899.248095,0.00036986,31]
[403035350,1769093450676,-1025.973998,0.00036986,31]
[403035351,1769093450686,-1025.973998,0.00036986,31]
[403035352,1769093450695,-413.73864164,0.00036986,31]
[403035353,1769093450713,-428.0269405,0.00036986,31]
[403035354,1769093450730,-57.48251286,0.00036986,31]
[403035355,1769093450741,-1025.973998,0.00036986,31]
[403035356,1769093450750,-820.45298439,0.00036986,31]
[403035357,1769093450761,-78.79511061,0.00036986,31]
[403035358,1769093450771,-152.940304,0.00036986,31]
[403035359,1769093450780,-1025.973998,0.00036986,31]
[403035360,1769093450790,-899.248091,0.00036986,31]
[403035361,1769093450799,-1025.973998,0.00036986,31]
[403035362,1769093450809,-154.775084,0.00036986,31]
[403035363,1769093450819,-153.340515,0.00036986,31]
[403035364,1769093450828,-270.24345567,0.00036986,31]
[403035365,1769093450840,-1078.99397433,0.00036986,31]
[403035366,1769093450849,-463.544945,0.00036986,31]
[403035367,1769093450858,-1349.23743,0.00036986,31]
[403035368,1769093450867,-463.544945,0.00036986,31]
[403035369,1769093450876,-1349.23743,0.00036986,31]
[403035370,1769093450886,-463.544945,0.00036986,31]
[403035371,1769093450895,-1349.23743,0.00036986,31]
[403035372,1769093450904,-463.544945,0.00036986,31]
[403035373,1769093450914,-463.544945,0.00036986,31]
[403035374,1769093450922,-1349.23743,0.00036986,31]
[403035375,1769093450931,-1349.23743,0.00036986,31]
[403035376,1769093450940,-463.544945,0.00036986,31]
[403035377,1769093450949,-1349.23743,0.00036986,31]
[403035378,1769093450958,-463.544945,0.00036986,31]
[403035379,1769093450968,-232.79971967,0.00036986,31]
[403035380,1769093450979,-597.61849702,0.00036986,31]
[403035381,1769093451657,-567.0,0.00025404,2]
[403035382,1769093451666,-567.0,0.00028404,2]
[403035383,1769093451676,-567.0,0.00031404,2]
[403035384,1769093451685,-482.04129649,0.00034404,2]
[403035385,1769093451713,-84.95870351,0.00034404,2]
[403035386,1769093451723,-151.43113848,0.00034407,3]
[403035387,1769093451732,-518.81921331,0.00036986,31]
[403035388,1769093451742,-463.544945,0.00036986,31]
[403035389,1769093451751,-1349.23743,0.00036986,31]
[403035390,1769093451760,-1349.23743,0.00036986,31]
[403035391,1769093451769,-1349.23743,0.00036986,31]
[403035392,1769093451778,-57.22414188,0.00036986,31]
[403035393,1769093451790,-406.32080312,0.00036986,31]
[403035394,1769093451799,-866.89519688,0.00036986,31]
[403035395,1769093451810,-482.34223312,0.00036986,31]
[403035396,1769093451819,-463.544945,0.00036986,31]
[403035397,1769093451828,-1212.58803258,0.00036986,31]
[403035398,1769093451839,-136.64939742,0.00036986,31]
[403035399,1769093451849,-463.544945,0.00036986,31]
[403035400,1769093451858,-602.51517237,0.00036986,31]
[403035401,1769093451874,-746.72225763,0.00036986,31]
[403035402,1769093451883,-463.544945,0.00036986,31]
[403035403,1769093451892,-10.91524125,0.00036986,31]
[403035404,1769093454595,-1.7e-07,0.00036986,31]
[403035405,1769093454608,-1338.32218858,0.00036986,31]
[403035406,1769093454618,-463.544945,0.00036986,31]
[403035407,1769093454628,-1349.23743,0.00036986,31]
[403035408,1769093454638,-463.544945,0.00036986,31]
[403035409,1769093454649,-1349.23743,0.00036986,31]
[403035410,1769093454659,-1349.23743,0.00036986,31]
[403035411,1769093454669,-463.544945,0.00036986,31]
[403035412,1769093454679,-463.544945,0.00036986,31]
[403035413,1769093454689,-1349.23743,0.00036986,31]
[403035414,1769093454698,-463.544945,0.00036986,31]
[403035415,1769093454708,-158.707833,0.00036986,31]
[403035416,1769093454717,-463.544945,0.00036986,31]
[403035417,1769093454727,-1349.237438,0.00036986,31]
[403035418,1769093454737,-463.544945,0.00036986,31]
[403035419,1769093454746,-463.544949,0.00036986,31]
[403035420,1769093454756,-151.0,0.00036986,31]
[403035421,1769093454765,-191.734898,0.00036986,31]
[403035422,1769093454775,-191.734898,0.00036986,31]
[403035423,1769093454784,-191.734898,0.00036986,31]
[403035424,1769093454794,-191.734898,0.00036986,31]
[403035425,1769093454803,-191.734898,0.00036986,31]
[403035426,1769093454812,-191.734898,0.00036986,31]
[403035427,1769093454822,-191.734898,0.00036986,31]
[403035428,1769093454831,-191.734898,0.00036986,31]
[403035429,1769093454840,-191.734898,0.00036986,31]
[403035430,1769093454849,-191.734898,0.00036986,31]
[403035431,1769093454859,-191.734898,0.00036986,31]
[403035432,1769093454868,-191.734898,0.00036986,31]
[403035433,1769093454878,-191.734898,0.00036986,31]
[403035434,1769093454887,-191.734898,0.00036986,31]
[403035435,1769093454896,-191.734898,0.00036986,31]
[403035436,1769093454906,-191.734898,0.00036986,31]
[403035437,1769093454915,-191.734898,0.00036986,31]
[403035438,1769093454925,-191.734898,0.00036986,31]
[403035439,1769093454936,-191.734898,0.00036986,31]
[403035440,1769093454947,-191.734907,0.00036986,31]
[403035441,1769093454957,-151.0,0.00036986,31]
[403035442,1769093454966,-151.0,0.00036986,31]
[403035443,1769093454975,-151.0,0.00036986,31]
[403035444,1769093454984,-151.0,0.00036986,31]
[403035445,1769093454994,-204.660867,0.00036986,31]
[403035446,1769093455004,-581.978289,0.00036986,31]
[403035447,1769093455014,-581.978289,0.00036986,31]
[403035448,1769093455023,-581.978289,0.00036986,31]
[403035449,1769093455032,-581.978289,0.00036986,31]
[403035450,1769093455041,-581.978289,0.00036986,31]
[403035451,1769093455051,-581.978289,0.00036986,31]
[403035452,1769093455060,-581.978289,0.00036986,31]
[403035453,1769093455070,-581.978289,0.00036986,31]
[403035454,1769093455079,-581.978289,0.00036986,31]
[403035455,1769093455088,-581.978289,0.00036986,31]
[403035456,1769093455097,-581.978289,0.00036986,31]
[403035457,1769093455106,-581.978289,0.00036986,31]
[403035458,1769093455115,-581.978289,0.00036986,31]
[403035459,1769093455125,-581.978289,0.00036986,31]
[403035460,1769093455133,-581.978289,0.00036986,31]
[403035461,1769093455143,-581.978289,0.00036986,31]
[403035462,1769093455152,-581.978289,0.00036986,31]
[403035463,1769093455161,-125.23350741,0.00036986,31]
[403035464,1769093455313,-456.74478159,0.00036986,31]
[403035465,1769093455322,-581.978289,0.00036986,31]
[403035466,1769093455332,-39.67252141,0.00036986,31]
[403035467,1769093455351,-442.82518552,0.000179,2]
[403035468,1769093455787,-396.4081748,0.000179,2]
[403035469,1769093455810,-1528.42613869,0.000179,2]
[403035470,1769093455899,-1334.00376711,0.000179,2]
[403035471,1769093455910,-2448.77003185,0.000179,2]
[403035472,1769093455929,-1380.05497562,0.000179,2]
[403035473,1769093455938,-619.0091639,0.000179,2]
[403035474,1769093455947,-619.00916385,0.00021902,2]
[403035475,1769093455956,-542.30576059,0.00036986,31]
[403035476,1769093455965,-151.0,0.00036986,31]
[403035477,1769093455974,-163.229873,0.00036986,31]
[403035478,1769093455983,-163.229873,0.00036986,31]
[403035479,1769093455993,-163.229873,0.00036986,31]
[403035480,1769093456002,-151.0,0.00036986,31]
[403035481,1769093456011,-163.229873,0.00036986,31]
[403035482,1769093456020,-191.404964,0.00036986,31]
[403035483,1769093456029,-163.229873,0.00036986,31]
[403035484,1769093456038,-163.229873,0.00036986,31]
[403035485,1769093456047,-163.229873,0.00036986,31]
[403035486,1769093456056,-163.229873,0.00036986,31]
[403035487,1769093456065,-163.229873,0.00036986,31]
[403035488,1769093456074,-163.229873,0.00036986,31]
[403035489,1769093456083,-181.800932,0.00036986,31]
[403035490,1769093456093,-163.229873,0.00036986,31]
[403035491,1769093456101,-163.229873,0.00036986,31]
[403035492,1769093456111,-151.0,0.00036986,31]
[403035493,1769093456119,-163.229873,0.00036986,31]
[403035494,1769093456128,-163.229873,0.00036986,31]
[403035495,1769093456137,-163.229873,0.00036986,31]
[403035496,1769093456146,-163.229873,0.00036986,31]
[403035497,1769093456155,-163.229873,0.00036986,31]
[403035498,1769093456165,-163.229873,0.00036986,31]
[403035499,1769093456174,-163.229873,0.00036986,31]
[403035500,1769093456183,-163.229867,0.00036986,31]
[403035501,1769093456192,-190.225789,0.00036986,31]
[403035502,1769093456201,-175.928127,0.00036986,31]
[403035503,1769093456211,-151.0,0.00036986,31]
[403035504,1769093456221,-151.0,0.00036986,31]
[403035505,1769093456230,-529.066964,0.00036986,31]
[403035506,1769093456239,-157.08664,0.00036986,31]
[403035507,1769093456248,-151.0,0.00036986,31]
[403035508,1769093456257,-529.066964,0.00036986,31]
[403035509,1769093456267,-151.0,0.00036986,31]
[403035510,1769093456276,-378.117282,0.00036986,31]
[403035511,1769093456285,-529.066964,0.00036986,31]
[403035512,1769093456294,-152.758112,0.00036986,31]
[403035513,1769093456303,-154.512789,0.00036986,31]
[403035514,1769093456312,-529.066964,0.00036986,31]
[403035515,1769093456322,-378.117282,0.00036986,31]
[403035516,1769093456331,-529.066964,0.00036986,31]
[403035517,1769093456340,-529.066964,0.00036986,31]
[403035518,1769093456350,-378.117282,0.00036986,31]
[403035519,1769093456360,-529.066964,0.00036986,31]
[403035520,1769093456369,-378.117282,0.00036986,31]